bitfinex-derivatives/quotes_BNBF0:USTF0_20250315
["timestamp","ask_amount","ask_price","bid_price","bid_amount"]
[1742015179385,0.30845127,593.67,593.03,6.582]
[1742015179582,0.30845127,593.73,593.03,6.582]
[1742015179788,0.64531039,593.72,593.03,6.582]
[1742015179982,0.33685912,593.72,593.03,6.582]
[1742015180286,0.30839928,593.71,593.03,6.582]
[1742015181082,0.29344059,593.7,593.03,6.582]
[1742015181284,0.30839928,593.69,593.03,6.582]
[1742015182084,0.29344307,593.68,593.03,6.582]
[1742015182282,0.30839928,593.67,593.03,6.582]
[1742015185086,0.29344554,593.66,593.03,6.582]
[1742015185487,0.30839928,593.65,593.03,6.582]
[1742015186890,0.64529812,593.65,593.03,6.582]
[1742015187088,0.6453038,593.64,593.03,6.582]
[1742015187287,0.30839928,593.63,593.03,6.582]
[1742015187493,0.33691587,593.62,593.03,6.582]
[1742015187687,0.30839928,593.61,593.03,6.582]
[1742015187889,0.33692722,593.6,593.03,6.582]
[1742015188086,0.30839928,593.59,593.03,6.582]
[1742015188392,0.30839928,593.58,593.03,6.582]
[1742015188591,0.64534353,593.57,593.03,6.582]
[1742015188887,0.6453492,593.56,593.03,6.582]
[1742015189092,0.64535488,593.55,593.03,6.582]
[1742015189391,0.30839928,593.54,593.03,6.582]
[1742015190089,0.63047561,593.53,593.03,6.582]
[1742015190289,0.30839928,593.52,593.03,6.582]
[1742015191189,0.60178485,593.51,593.03,6.582]
[1742015191393,0.30827372,593.5,593.03,6.582]
[1742015193992,0.30827372,593.52,593.03,6.582]
[1742015194190,0.2935136,593.49,593.03,6.582]
[1742015194495,0.30827372,593.48,593.03,6.582]
[1742015197007,0.30827372,593.52,593.03,6.582]
[1742015197199,0.6017898,593.47,593.03,6.582]
[1742015197494,0.30827372,593.46,593.03,6.582]
[1742015199405,0.33701238,593.45,593.03,6.582]
[1742015199604,0.30827372,593.44,593.03,6.582]
[1742015200007,0.30827372,593.44,592.03,0.29354826]
[1742015200400,0.30827372,593.44,592.04,0.33781501]
[1742015200601,0.33702374,593.43,592.04,0.33781501]
[1742015200813,0.30827372,593.42,592.04,0.33781501]
[1742015201007,0.3370351,593.41,592.04,0.33781501]
[1742015201201,0.30827372,593.4,592.04,0.33781501]
[1742015202205,0.33704646,593.39,592.04,0.33781501]
[1742015202405,0.30827372,593.38,592.04,0.33781501]
[1742015202606,0.33705782,593.37,592.04,2.09181501]
[1742015202803,0.3079414,593.36,592.04,3.02081501]
[1742015203013,0.33706918,593.35,592.04,3.74181501]
[1742015203307,0.3079414,593.34,592.04,3.74181501]
[1742015203508,0.3079414,593.34,592.04,4.49681501]
[1742015203708,0.3079414,593.34,592.05,0.31002712]
[1742015203912,0.3079414,593.34,592.06,0.3378036]
[1742015204104,0.3079414,593.34,592.07,0.31002712]
[1742015204314,0.3079414,593.34,592.08,0.33779219]
[1742015204512,0.3079414,593.34,592.09,0.31002712]
[1742015204906,0.3079414,593.34,592.1,0.33778078]
[1742015205114,0.3079414,593.34,592.11,0.31002712]
[1742015206207,0.29367089,593.33,592.11,0.31002712]
[1742015206408,0.3079414,593.32,592.11,0.31002712]
[1742015207311,0.29367089,593.33,592.1,0.33778078]
[1742015207510,0.30799117,593.32,592.11,0.31000755]
[1742015208207,0.30799117,593.32,592.12,0.33776937]
[1742015208413,0.30799117,593.32,592.13,0.31000755]
[1742015208608,0.30799117,593.32,592.14,0.33775796]
[1742015208813,0.30799117,593.32,592.15,0.31000755]
[1742015209108,0.30799117,593.31,592.16,0.33774655]
[1742015209414,0.30799117,593.3,592.17,0.31000755]
[1742015209613,0.30799117,593.3,592.18,0.33773514]
[1742015210315,0.30803103,593.29,592.18,0.33773514]
[1742015210513,0.30803103,593.28,592.18,0.33773514]
[1742015210709,0.30803103,593.27,592.18,0.33773514]
[1742015211016,0.30803103,593.26,592.18,0.33773514]
[1742015211309,0.30803103,593.25,592.18,0.33773514]
[1742015211516,0.30803103,593.24,592.18,0.33773514]
[1742015211710,0.30803103,593.23,592.18,0.33773514]
[1742015211912,0.30803103,593.3,592.18,0.33773514]
[1742015212113,0.29366841,593.26,592.18,0.33773514]
[1742015212310,0.30803103,593.25,592.18,0.33773514]
[1742015214015,0.29366841,593.26,592.18,0.33773514]
[1742015214415,0.30800626,593.25,592.18,0.33773514]
[1742015215012,0.29368328,593.24,592.18,0.33773514]
[1742015215411,0.30800626,593.23,592.18,0.33773514]
[1742015217914,0.30800626,593.23,592.18,1.05473514]
[1742015219623,0.30795365,593.22,592.18,1.05473514]
[1742015219822,0.30795365,593.23,592.18,1.05473514]
[1742015221019,0.29368947,593.22,592.18,1.05473514]
[1742015221425,0.3079657,593.21,592.18,1.05473514]
[1742015222423,0.3079657,593.21,592.18,1.78073514]
[1742015224119,0.33706918,593.35,592.18,1.78073514]
[1742015224120,0.29369939,593.2,592.18,1.78073514]
[1742015224522,0.3079657,593.19,592.18,1.78073514]
[1742015225219,0.3079657,593.19,592.19,0.31002673]
[1742015225525,0.3079657,593.19,592.18,1.78073514]
[1742015225723,0.3079657,593.19,592.19,0.31003239]
[1742015226118,0.29369939,593.2,592.18,1.78073514]
[1742015226920,0.33706918,593.35,592.18,1.78073514]
[1742015227125,0.29365106,593.26,592.18,2.76273514]
[1742015227320,0.30796394,593.25,592.18,2.76273514]
[1742015227524,0.30796394,593.24,592.18,2.76273514]
[1742015227729,0.33706918,593.35,592.18,2.76273514]
[1742015228126,0.30794173,593.34,592.18,2.76273514]
[1742015229227,0.29366841,593.33,592.18,2.76273514]
[1742015229429,0.30794173,593.32,592.18,2.76273514]
[1742015232429,0.30795933,593.31,592.18,2.76273514]
[1742015232635,0.30795933,593.3,592.18,2.76273514]
[1742015232837,0.30795933,593.29,592.18,2.76273514]
[1742015233042,0.29365354,593.29,592.18,2.76273514]
[1742015233236,0.30795933,593.28,592.18,2.76273514]
[1742015233835,0.30795933,593.28,592.18,3.64573514]
[1742015235434,0.29365354,593.29,592.18,3.64573514]
[1742015235834,0.33706918,593.35,592.18,3.64573514]
[1742015236038,0.30796286,593.34,592.18,3.64573514]
[1742015236233,0.29365106,593.28,592.18,3.64573514]
[1742015236440,0.30796286,593.27,592.18,4.51773514]
[1742015237935,0.308001,593.26,592.18,5.18573514]
[1742015238243,0.29365106,593.28,592.18,5.18573514]
[1742015238444,0.29365106,593.28,592.19,0.30998022]
[1742015238642,0.29365106,593.28,592.2,0.33772374]
[1742015238840,0.33706918,593.35,592.21,0.3099666]
[1742015239037,0.30805364,593.34,592.22,0.33771233]
[1742015239243,0.30805364,593.34,592.23,0.3099666]
[1742015239447,0.30805364,593.34,592.24,0.33770093]
[1742015239644,0.30805364,593.34,592.25,0.3099666]
[1742015239841,0.33706918,593.35,592.26,0.33768952]
[1742015240041,0.30809962,593.33,592.26,0.64763438]
[1742015240244,0.30809962,593.32,592.27,0.30994486]
[1742015240439,0.30809962,593.34,592.28,0.33767812]
[1742015240748,0.30809962,593.34,592.29,0.30994486]
[1742015240943,0.30809962,593.34,592.3,0.33766672]
[1742015241143,0.30809962,593.34,592.31,0.30994486]
[1742015241345,0.30809962,593.34,592.32,0.33765532]
[1742015241543,0.30809962,593.39,592.33,0.30994486]
[1742015241859,0.30817339,593.38,592.34,0.64755295]
[1742015242040,0.30817339,593.79,592.35,0.64754725]
[1742015242245,0.29358294,593.44,592.36,0.64754155]
[1742015242443,0.30817339,593.43,592.37,0.30990903]
[1742015242643,0.30817339,593.77,592.37,0.30990903]
[1742015242844,0.33683643,593.76,592.38,0.809]
[1742015243054,0.30817339,593.75,592.39,0.30990903]
[1742015243240,0.30817339,593.75,592.38,0.809]
[1742015243445,0.64498721,593.74,592.38,0.809]
[1742015243645,0.64499289,593.73,592.38,0.809]
[1742015243840,0.64499856,593.72,592.38,0.809]
[1742015244041,0.64500423,593.71,592.38,0.809]
[1742015244244,0.64500991,593.7,592.38,0.809]
[1742015244445,0.64501558,593.69,592.38,0.809]
[1742015244645,0.64502126,593.68,592.38,0.809]
[1742015244840,0.64502693,593.67,592.38,0.809]
[1742015245041,0.64503261,593.66,592.38,0.809]
[1742015245241,0.64503828,593.65,592.38,0.809]
[1742015245447,0.64504396,593.64,592.38,0.809]
[1742015245640,0.64504963,593.63,592.38,0.809]
[1742015245844,0.64505531,593.62,592.38,0.809]
[1742015246046,0.64506098,593.61,592.38,0.809]
[1742015246245,0.30813944,593.6,592.38,0.809]
[1742015247348,0.30813944,593.6,592.39,0.691]
[1742015248148,0.29354826,593.59,592.39,0.691]
[1742015248349,0.30813944,593.58,592.39,0.691]
[1742015249147,0.29354826,593.59,592.39,0.691]
[1742015249348,0.30824907,593.58,592.39,0.691]
[1742015250452,0.30824907,593.58,592.4,0.807]
[1742015251043,0.30824907,593.6,592.4,0.807]
[1742015251249,0.6017961,593.57,592.4,0.807]
[1742015251451,0.30824907,593.56,592.4,0.807]
[1742015251653,0.30824907,593.56,592.4,1.545]
[1742015253749,0.30824907,593.56,592.4,2.149]
[1742015254150,0.29355198,593.55,592.4,2.149]
[1742015254550,0.30824907,593.54,592.4,2.149]
[1742015259061,0.30824907,593.54,592.4,2.794]
[1742015260060,0.30824907,593.6,592.4,2.794]
[1742015260259,0.29355446,593.53,592.4,2.794]
[1742015260462,0.33692154,593.61,592.4,2.794]
[1742015260662,0.30832184,593.6,592.4,3.655]
[1742015261259,0.29354703,593.59,592.4,3.655]
[1742015261459,0.30832184,593.58,592.4,3.655]
[1742015262465,0.30832184,593.58,592.4,4.685]
[1742015263069,0.30832184,593.6,592.4,4.685]
[1742015263265,0.30832184,593.59,592.4,4.685]
[1742015263461,0.30832184,593.6,592.4,4.685]
[1742015263662,0.30832184,593.6,592.4,5.587]
[1742015265867,0.29354703,593.59,592.4,5.587]
[1742015266065,0.30830054,593.58,592.4,5.587]
[1742015266764,0.3082935,593.57,592.4,5.587]
[1742015266964,0.3082935,593.58,592.4,5.587]
[1742015267169,0.3082935,593.57,592.4,5.587]
[1742015267464,0.29354703,593.59,592.4,5.587]
[1742015267664,0.30829319,593.58,592.4,5.587]
[1742015270869,0.30829319,593.58,592.41,0.30990092]
[1742015271867,0.30829319,593.58,592.4,4.176]
[1742015272067,0.29356188,593.57,592.4,4.176]
[1742015272267,0.29356188,593.57,592.4,4.964]
[1742015272472,0.30829319,593.56,592.4,4.964]
[1742015272673,0.30829319,593.56,592.41,0.30991985]
[1742015273574,0.30829319,593.56,592.41,0.662]
[1742015274469,0.30829319,593.56,592.41,1.32]
[1742015274674,0.30829319,593.56,592.42,0.30991478]
[1742015275974,0.30829319,593.56,592.41,1.32]
[1742015278078,0.30829319,593.6,592.41,1.32]
[1742015278281,0.30829319,593.59,592.41,1.32]
[1742015278481,0.30829319,593.58,592.41,1.32]
[1742015278680,0.30829319,593.6,592.41,1.32]
[1742015278876,0.30829319,593.59,592.41,2.277]
[1742015279079,0.30829319,593.6,592.41,2.277]
[1742015279880,0.29354579,593.59,592.41,2.277]
[1742015280083,0.30829319,593.58,592.41,2.277]
[1742015281178,0.29354826,593.57,592.42,0.30990728]
[1742015281378,0.30829319,593.56,592.42,0.30990728]
[1742015281683,0.29354826,593.57,592.42,0.888]
[1742015281885,0.30828654,593.56,592.43,0.30989585]
[1742015282685,0.30828654,593.56,592.44,0.33758692]
[1742015283183,0.29354826,593.57,592.44,0.33758692]
[1742015283882,0.33692154,593.61,592.45,0.30981388]
[1742015284185,0.29350741,593.59,592.46,0.33757553]
[1742015284388,0.29350741,593.59,592.47,0.30981388]
[1742015284679,0.29350741,593.59,592.48,0.33756413]
[1742015285082,0.29350741,593.59,592.49,0.97580187]
[1742015285283,0.29350741,593.59,592.5,0.33755274]
[1742015285591,0.33692154,593.61,592.51,0.3097881]
[1742015285787,0.33692154,593.61,592.52,0.33754134]
[1742015285980,0.33692154,593.61,592.53,0.3097881]
[1742015286183,0.33692154,593.61,592.49,0.666]
[1742015286184,0.33692154,593.61,592.54,0.33752995]
[1742015286378,0.33692154,593.61,592.55,0.30977804]
[1742015286590,0.33692154,593.61,592.56,0.33751856]
[1742015286783,0.33692154,593.61,592.57,0.30977804]
[1742015286989,0.33692154,593.61,592.58,0.33750717]
[1742015287386,0.30839617,593.6,592.59,0.30978298]
[1742015287581,2.57358879,594.43,592.6,0.33749578]
[1742015287788,2.57358879,594.39,592.61,0.30978298]
[1742015288081,0.30842676,594.38,592.61,0.30978298]
[1742015288292,0.30842676,594.37,592.62,0.33748439]
[1742015288492,0.64492315,594.36,592.63,0.30978298]
[1742015288787,0.30842676,594.35,592.64,0.337473]
[1742015288987,0.33651338,594.33,592.64,0.337473]
[1742015289186,0.30842676,594.32,592.65,0.30971605]
[1742015289384,0.33653037,594.3,592.66,0.33746161]
[1742015289591,0.30842676,594.29,592.66,0.33746161]
[1742015289888,0.30845173,594.28,592.66,0.33746161]
[1742015290288,0.30845173,594.29,592.67,0.30970877]
[1742015290486,0.30845173,594.28,592.68,0.33745022]
[1742015290688,0.33655302,594.26,592.69,0.30970877]
[1742015290886,0.30845173,594.25,592.7,0.33743883]
[1742015291087,0.33656435,594.24,592.71,0.30970877]
[1742015291283,0.30845173,594.23,592.7,1.15243883]
[1742015291887,0.33657567,594.22,592.71,0.33743314]
[1742015292091,0.30845173,594.21,592.71,0.33743314]
[1742015293289,0.29333052,594.2,592.71,0.33743314]
[1742015293593,0.30845173,594.19,592.72,0.3096888]
[1742015294195,0.30845173,594.19,592.73,0.917]
[1742015294395,0.30845173,594.19,592.74,0.3096888]
[1742015295385,0.29333052,594.2,592.75,0.33741037]
[1742015295589,0.30841702,594.19,592.75,0.33741037]
[1742015295985,0.30841702,594.21,592.75,0.33741037]
[1742015296191,0.29330951,594.18,592.75,0.33741037]
[1742015296386,0.64502102,594.17,592.75,0.33741037]
[1742015296592,0.64502668,594.16,592.75,0.33741037]
[1742015296789,0.64503235,594.15,592.75,0.33741037]
[1742015296989,0.30841702,594.14,592.75,0.33741037]
[1742015297191,0.33662666,594.13,592.75,0.33741037]
[1742015297385,0.30841702,594.12,592.75,0.33741037]
[1742015297591,0.33663799,594.11,592.75,0.33741037]
[1742015297991,0.30841702,594.1,592.75,0.33741037]
[1742015298396,0.64506068,594.1,592.75,0.33741037]
[1742015298593,0.30841702,594.09,592.76,0.677]
[1742015298792,0.30841702,594.09,592.77,0.64708233]
[1742015298995,0.30841702,594.09,592.78,0.64707663]
[1742015299294,0.293333,594.08,592.79,0.3373876]
[1742015299492,0.30841702,594.07,592.79,0.3373876]
[1742015300792,0.30841702,594.07,592.8,0.30967629]
[1742015300990,0.30841702,594.07,592.81,0.33737622]
[1742015301187,0.293333,594.08,592.81,0.33737622]
[1742015301392,0.30840943,594.07,592.82,0.30967531]
[1742015301589,0.30840943,594.07,592.83,0.33736484]
[1742015301796,0.30840943,594.07,592.84,0.30967531]
[1742015304105,0.30840943,594.07,592.83,0.33736484]
[1742015304795,0.30840943,594.07,592.84,0.928]
[1742015305500,0.60173254,594.06,592.84,0.928]
[1742015305698,0.30840943,594.05,592.84,0.928]
[1742015307902,0.30841131,594.04,592.84,0.928]
[1742015308200,0.30841131,594.03,592.84,0.928]
[1742015308399,0.30841131,594.09,592.85,1.062]
[1742015308598,0.30841131,594.08,592.85,1.062]
[1742015308795,0.30841131,594.09,592.85,1.062]
[1742015308998,0.30841131,594.08,592.85,1.062]
[1742015309299,0.30841131,594.07,592.86,0.861]
[1742015309495,0.30841131,594.09,592.86,0.861]
[1742015313205,0.29331816,594.08,592.86,0.861]
[1742015313405,0.30841131,594.07,592.86,0.861]
[1742015314209,0.29332063,594.06,592.87,0.898]
[1742015314705,0.30841131,594.05,592.87,0.898]
[1742015317201,0.6017406,594.04,592.88,0.598]
[1742015317407,0.30841131,594.03,592.88,0.598]
[1742015319318,0.30841131,594.03,592.89,0.761]
[1742015320005,0.33664366,594.1,592.89,0.761]
[1742015320006,0.30845012,594.02,592.9,0.817]
[1742015320204,0.30845012,594.09,592.9,0.817]
[1742015320411,0.64510511,594.08,592.9,0.817]
[1742015320617,0.30845012,594.07,592.9,0.817]
[1742015322117,0.29332311,594.06,592.9,0.817]
[1742015322421,0.30845012,594.05,592.9,0.817]
[1742015323215,0.29332558,594.04,592.9,0.817]
[1742015323620,0.30845012,594.03,592.9,0.817]
[1742015325719,0.29332558,594.04,592.9,1.522]
[1742015325922,0.30841883,594.03,592.9,1.522]
[1742015327729,0.30844345,594.02,592.9,1.522]
[1742015327923,0.29332558,594.04,592.9,1.522]
[1742015327924,0.30844345,594.03,592.9,1.522]
[1742015328122,0.30844345,594.02,592.9,1.522]
[1742015328328,0.30844345,594.03,592.9,1.522]
[1742015329227,0.29332311,594.02,592.9,1.522]
[1742015329428,0.29332311,594.02,592.9,2.074]
[1742015329630,0.30844345,594.01,592.9,2.074]
[1742015332030,0.30844345,594.01,592.9,2.884]
[1742015332230,0.29332558,594.0,592.9,2.884]
[1742015332537,0.30844345,593.99,592.9,3.745]
[1742015335134,0.29332805,593.98,592.9,3.745]
[1742015335334,0.30844345,593.97,592.9,3.745]
[1742015336930,0.30844345,593.97,592.9,4.477]
[1742015337133,0.30842161,593.96,592.9,4.477]
[1742015337333,0.30842161,593.97,592.9,4.477]
[1742015338133,0.30842161,594.07,592.9,4.477]
[1742015338336,0.29333052,593.96,592.9,4.477]
[1742015338635,0.30842161,593.95,592.9,4.477]
[1742015338836,0.30842161,594.07,592.9,4.477]
[1742015339036,0.30842161,594.06,592.9,4.477]
[1742015339235,0.30842161,594.05,592.9,4.477]
[1742015339432,0.30842161,594.07,592.9,5.293]
[1742015339631,0.30842161,594.06,592.9,5.293]
[1742015339940,0.30842161,594.05,592.9,5.293]
[1742015340139,0.29332063,594.05,592.9,5.293]
[1742015340336,0.30842161,594.04,592.9,5.293]
[1742015340834,0.30841707,594.03,592.9,5.293]
[1742015341032,0.30841707,594.07,592.9,5.293]
[1742015341232,0.30841707,594.06,592.9,5.293]
[1742015341437,0.30841707,594.07,592.9,5.293]
[1742015341635,0.30841707,594.06,592.9,5.293]
[1742015341839,0.30841707,594.05,592.9,5.293]
[1742015342040,0.30841707,594.04,592.9,5.293]
[1742015342240,0.30841707,594.07,592.9,5.293]
[1742015342442,0.30841707,594.06,592.9,5.293]
[1742015342637,0.30841707,594.07,592.9,5.293]
[1742015342842,0.30841707,594.07,592.9,6.144]
[1742015343243,0.29332063,594.06,592.9,6.144]
[1742015343443,0.30841707,594.05,592.9,6.144]
[1742015344141,0.30843099,594.04,592.9,6.144]
[1742015344345,0.30843099,594.07,592.9,6.144]
[1742015344541,0.30843099,594.06,592.9,6.144]
[1742015344744,0.29332063,594.06,592.9,6.144]
[1742015344946,0.30843099,594.05,592.9,6.144]
[1742015345944,0.29332063,594.06,592.9,6.144]
[1742015346146,0.308425,594.05,592.9,6.144]
[1742015350053,0.308425,594.07,592.9,6.144]
[1742015350253,0.29332311,594.04,592.9,6.144]
[1742015350447,0.308425,594.03,592.9,6.144]
[1742015353250,0.29332558,594.02,592.9,6.144]
[1742015353649,0.308425,594.01,592.9,6.144]
[1742015356154,0.60175305,594.0,592.9,6.144]
[1742015356355,0.308425,593.99,592.9,6.144]
[1742015359051,0.308425,594.07,592.9,6.144]
[1742015359253,0.308425,593.98,592.9,6.144]
[1742015359455,0.308425,593.97,592.9,6.144]
[1742015359652,0.308425,594.07,592.9,6.144]
[1742015361159,0.29332063,594.06,592.9,6.144]
[1742015361458,0.308425,594.05,592.9,6.144]
[1742015362054,0.308425,594.07,592.9,6.144]
[1742015362257,0.29332063,594.04,592.9,6.144]
[1742015362456,0.308425,594.03,592.9,6.144]
[1742015365463,0.64510833,594.03,592.9,6.144]
[1742015365661,0.645114,594.02,592.9,6.144]
[1742015365864,0.64511966,594.01,592.9,6.144]
[1742015366062,0.64512533,594.0,592.9,6.144]
[1742015366265,0.645131,593.99,592.9,6.144]
[1742015366465,0.308425,593.98,592.9,6.144]
[1742015368062,0.29335649,593.97,592.9,6.144]
[1742015368261,0.308425,593.96,592.9,6.144]
[1742015368659,0.29335649,593.97,592.9,6.144]
[1742015368862,0.30845517,593.96,592.9,6.144]
[1742015369063,0.33672868,593.95,592.9,6.144]
[1742015369265,0.30845517,593.94,592.9,6.144]
[1742015369458,0.33674001,593.93,592.9,6.144]
[1742015369664,0.30845517,593.92,592.9,6.144]
[1742015369960,0.33675135,593.91,592.9,6.144]
[1742015370263,0.30845517,593.9,592.9,6.144]
[1742015370564,0.33675135,593.91,592.9,6.144]
[1742015370759,0.30842138,593.9,592.9,6.144]
[1742015371164,0.29338617,593.89,592.9,6.144]
[1742015371365,0.30842138,593.88,592.9,6.144]
[1742015374163,0.29338864,593.87,592.9,6.144]
[1742015374364,0.60181002,593.87,592.9,6.144]
[1742015374560,0.30842138,593.86,592.9,6.144]
[1742015374961,0.30842218,593.85,592.9,6.144]
[1742015375167,0.30842218,593.86,592.9,6.144]
[1742015375360,0.30842218,593.85,592.9,6.144]
[1742015375558,0.30842218,593.86,592.9,6.144]
[1742015377063,0.30842218,593.9,592.9,6.144]
[1742015377264,0.29339111,593.85,592.9,6.144]
[1742015377462,0.30842218,593.84,592.9,6.144]
[1742015378261,0.30841976,593.83,592.9,6.144]
[1742015378462,0.30841976,593.84,592.9,6.144]
[1742015380269,0.60181335,593.83,592.9,6.144]
[1742015380470,0.30841976,593.82,592.9,6.144]
[1742015383171,0.29339606,593.81,592.9,6.144]
[1742015383471,0.30841976,593.8,592.9,6.144]
[1742015386279,0.60179603,593.79,592.9,6.144]
[1742015386477,0.30841976,593.78,592.9,6.144]
[1742015389382,0.30841976,593.77,592.9,6.144]
[1742015389582,0.29337875,593.78,592.9,6.144]
[1742015389781,0.30848308,593.77,592.9,6.144]
[1742015392183,0.30848308,593.76,592.9,6.144]
[1742015392382,0.29336762,593.83,592.9,6.144]
[1742015392579,0.30848308,593.82,592.9,6.144]
[1742015393386,0.29336762,593.83,592.9,6.144]
[1742015393592,0.30843534,593.82,592.9,6.144]
[1742015395083,0.33675135,593.91,592.9,6.144]
[1742015395287,0.29336143,593.83,592.9,6.144]
[1742015395587,0.30839893,593.82,592.9,6.144]
[1742015395782,0.30839893,593.9,592.9,6.144]
[1742015397183,0.29335154,593.89,592.9,6.144]
[1742015397588,0.3083919,593.88,592.9,6.144]
[1742015398285,0.60174591,593.87,592.9,6.144]
[1742015398490,0.3083919,593.86,592.9,6.144]
[1742015400991,0.30832252,593.85,592.9,6.144]
[1742015401186,0.60171116,593.85,592.9,6.144]
[1742015401491,0.30832252,593.84,592.9,6.144]
[1742015402289,0.30831663,593.83,592.9,6.144]
[1742015402488,0.30831663,593.84,592.9,6.144]
[1742015402692,0.30831663,593.83,592.9,6.144]
[1742015402895,0.30831663,593.84,592.9,6.144]
[1742015403095,0.30831663,593.82,592.9,6.144]
[1742015403391,0.30831663,593.81,592.9,6.144]
[1742015403592,0.30831663,593.84,592.9,6.144]
[1742015403792,0.30831663,593.83,592.9,6.144]
[1742015403993,0.30831663,593.82,592.9,6.144]
[1742015404196,0.29339111,593.83,592.9,6.144]
[1742015404395,0.30831663,593.82,592.9,6.144]
[1742015406396,0.30831157,593.81,592.9,6.144]
[1742015406597,0.30831157,593.8,592.9,6.144]
[1742015406796,0.30831157,593.82,592.9,6.144]
[1742015407098,0.30831157,593.81,592.9,6.144]
[1742015407297,0.29339359,593.81,592.9,6.144]
[1742015407491,0.30831157,593.8,592.9,6.144]
[1742015410095,0.33675135,593.91,592.9,6.144]
[1742015410096,0.30831157,593.9,592.9,6.144]
[1742015410293,0.29339606,593.79,592.9,6.144]
[1742015410496,0.30831157,593.78,592.9,6.144]
[1742015410693,0.30831157,593.77,592.9,6.144]
[1742015410895,0.30831157,593.9,592.9,6.144]
[1742015411097,0.30831157,593.89,592.9,6.144]
[1742015411292,0.30831157,593.9,592.9,6.144]
[1742015412298,0.29337875,593.89,592.9,6.144]
[1742015412497,0.30831157,593.88,592.9,6.144]
[1742015413198,0.30831157,593.9,592.9,6.144]
[1742015413494,0.29338122,593.87,592.9,6.144]
[1742015413698,0.30831157,593.86,592.9,6.144]
[1742015415099,0.64509128,593.86,592.9,6.144]
[1742015415299,0.64509695,593.85,592.9,6.144]
[1742015415499,0.30831157,593.84,592.9,6.144]
[1742015415695,0.30825097,593.83,592.9,6.144]
[1742015415894,0.30825097,593.82,592.9,6.144]
[1742015416201,0.30825097,593.81,592.9,6.144]
[1742015418298,0.33681374,593.8,592.9,6.144]
[1742015418496,0.30825097,593.79,592.9,6.144]
[1742015419005,0.33682508,593.78,592.9,6.144]
[1742015419207,0.30825097,593.77,592.9,6.144]
[1742015419408,0.33683643,593.76,592.9,6.144]
[1742015419803,0.30825097,593.75,592.9,6.144]
[1742015420107,0.33684777,593.74,592.9,6.144]
[1742015420299,0.30825097,593.73,592.9,6.144]
[1742015420503,0.64510442,593.73,592.9,6.144]
[1742015420705,0.30825097,593.72,592.9,6.144]
[1742015421408,0.33685345,593.73,592.9,6.144]
[1742015421608,0.30814326,593.72,592.9,6.144]
[1742015422306,0.29345296,593.71,592.9,6.144]
[1742015422506,0.30814326,593.7,592.9,6.144]
[1742015425105,0.30814326,593.72,592.9,6.144]
[1742015425406,0.29345544,593.69,592.9,6.144]
[1742015425614,0.30814326,593.68,592.9,6.144]
[1742015428211,0.30814326,593.72,592.9,6.144]
[1742015428407,0.29344307,593.67,592.9,6.144]
[1742015428608,0.30814326,593.66,592.9,6.144]
[1742015431212,0.29343812,593.65,592.9,6.144]
[1742015431616,0.30814326,593.64,592.9,6.144]
[1742015437120,0.30814326,593.72,592.9,6.144]
[1742015437321,0.29344307,593.63,592.9,6.144]
[1742015437620,0.30814326,593.62,592.9,6.144]
[1742015437821,0.30814326,593.72,592.9,6.144]
[1742015438132,0.30814326,593.71,592.9,6.144]
[1742015438317,0.29343317,593.71,592.9,6.144]
[1742015438514,0.30809735,593.7,592.9,6.144]
[1742015440216,0.30809735,593.72,592.9,6.144]
[1742015440420,0.29343564,593.69,592.9,6.144]
[1742015440622,0.30809735,593.68,592.9,6.144]
[1742015443121,0.30809735,593.72,592.9,6.144]
[1742015443325,0.29343812,593.67,592.9,6.144]
[1742015443527,0.30809735,593.66,592.9,6.144]
[1742015446227,0.29344059,593.65,592.9,6.144]
[1742015446630,0.30809735,593.64,592.9,6.144]
[1742015447730,0.29344059,593.65,592.9,6.144]
[1742015447929,0.30812904,593.64,592.9,6.144]
[1742015448126,0.30813845,593.63,592.9,6.144]
[1742015448331,0.29344059,593.65,592.9,6.144]
[1742015448332,0.30813845,593.64,592.9,6.144]